bitfinex-derivatives/quotes_BTCF0:USTF0_20230901
["timestamp","ask_amount","ask_price","bid_price","bid_amount"]
[1693581016886,0.6226,25775.0,25771.0,0.6426]
[1693581017085,0.9226,25782.0,25774.0,0.6226]
[1693581017287,0.32,25782.0,25780.0,0.6226]
[1693581017485,0.11123745,25781.0,25780.0,0.6226]
[1693581018082,0.3,25776.0,25775.0,0.58472403]
[1693581018286,0.41123745,25776.0,25774.0,0.6226]
[1693581018484,0.32,25776.0,25774.0,0.6226]
[1693581018788,0.11123745,25775.0,25774.0,0.6226]
[1693581019186,0.05654838,25775.0,25774.0,0.6426]
[1693581019388,0.3,25776.0,25774.0,0.6426]
[1693581019586,0.3,25783.0,25777.0,0.6226]
[1693581019779,0.3,25783.0,25781.0,0.6226]
[1693581019989,0.3,25780.0,25776.0,0.6226]
[1693581020215,0.9426,25780.0,25776.0,0.6226]
[1693581020484,0.11123745,25779.0,25776.0,0.6226]
[1693581020689,0.9226,25780.0,25776.0,0.6226]
[1693581020889,0.11123745,25779.0,25776.0,0.6226]
[1693581021090,0.9426,25780.0,25777.0,0.003]
[1693581021594,0.9426,25780.0,25773.0,0.97626]
[1693581021595,0.00388,25776.0,25773.0,0.6226]
[1693581021782,0.00388,25776.0,25775.0,0.6226]
[1693581022384,0.00388,25776.0,25775.0,0.6426]
[1693581022986,0.3,25781.0,25775.0,0.6626]
[1693581023188,0.3,25781.0,25779.0,0.6226]
[1693581023494,0.05654838,25780.0,25779.0,0.6426]
[1693581023693,0.3,25781.0,25779.0,0.6426]
[1693581023890,0.00388,25785.0,25780.0,0.6226]
[1693581024096,0.00388,25785.0,25784.0,0.6226]
[1693581024385,0.11511745,25785.0,25784.0,0.6226]
[1693581024589,0.05654838,25785.0,25784.0,0.6226]
[1693581025086,0.06042838,25785.0,25784.0,0.6226]
[1693581025291,0.11511745,25785.0,25784.0,0.6226]
[1693581025495,0.06042838,25785.0,25784.0,0.6226]
[1693581025691,0.05654838,25785.0,25784.0,0.6226]
[1693581026087,0.3,25786.0,25784.0,0.6426]
[1693581026296,0.7907,25788.0,25785.0,1.2452]
[1693581026487,0.30388,25791.0,25787.0,0.6226]
[1693581026683,0.05468907,25790.0,25787.0,0.6226]
[1693581026888,0.3,25788.0,25785.0,0.6226]
[1693581027182,0.11123745,25787.0,25784.0,0.003]
[1693581027385,0.9226,25788.0,25784.0,0.003]
[1693581027585,0.11123745,25787.0,25784.0,0.003]
[1693581027786,0.3,25784.0,25783.0,0.6226]
[1693581027988,0.3,25784.0,25782.0,0.00058173]
[1693581027989,0.97914838,25784.0,25782.0,0.00058173]
[1693581028195,0.05468907,25783.0,25782.0,0.00058173]
[1693581028390,0.07468907,25783.0,25782.0,0.00058173]
[1693581028592,0.11123745,25783.0,25782.0,0.62318173]
[1693581029190,0.11123745,25783.0,25782.0,0.62618173]
[1693581029587,0.05654838,25783.0,25782.0,0.62618173]
[1693581030087,0.318,25784.0,25782.0,0.62618173]
[1693581030394,0.318,25784.0,25783.0,0.6226]
[1693581030783,0.07454838,25784.0,25783.0,0.6226]
[1693581030990,0.018,25784.0,25783.0,0.6226]
[1693581031190,0.018,25784.0,25783.0,0.6426]
[1693581031390,0.3,25787.0,25783.0,0.6626]
[1693581031597,0.3,25787.0,25786.0,0.6226]
[1693581031793,0.35654838,25787.0,25786.0,0.6226]
[1693581031991,0.3,25787.0,25786.0,0.67914838]
[1693581032194,0.35654838,25787.0,25786.0,0.6226]
[1693581032393,0.35654838,25787.0,25786.0,0.6426]
[1693581032592,0.3,25787.0,25786.0,0.6426]
[1693581033092,0.3,25787.0,25786.0,0.69914838]
[1693581033298,0.4505,25795.0,25786.0,1.29970169]
[1693581033591,0.3,25792.0,25786.0,0.62055331]
[1693581033792,0.3,25792.0,25791.0,0.6226]
[1693581033793,0.30388,25792.0,25791.0,0.6226]
[1693581033999,0.00388,25791.0,25790.0,0.6226]
[1693581034205,0.41123745,25792.0,25790.0,0.6226]
[1693581034206,0.3,25792.0,25790.0,0.6226]
[1693581034387,0.05654838,25791.0,25790.0,0.6226]
[1693581034991,0.11511745,25791.0,25790.0,0.6226]
[1693581036191,0.11123745,25791.0,25790.0,0.6226]
[1693581036397,0.05654838,25791.0,25790.0,0.6226]
[1693581036899,0.3,25792.0,25790.0,0.6226]
[1693581037101,0.05654838,25792.0,25791.0,0.6226]
[1693581037304,0.3,25795.0,25791.0,0.6226]
[1693581037492,0.3,25795.0,25794.0,0.6226]
[1693581037799,0.35654838,25795.0,25794.0,0.6426]
[1693581038103,0.35730286,25795.0,25794.0,0.6426]
[1693581038292,0.30075448,25795.0,25794.0,0.6426]
[1693581038798,0.30075448,25795.0,25794.0,0.69914838]
[1693581039003,0.3,25795.0,25794.0,0.69914838]
[1693581039201,0.3,25798.0,25794.0,0.69914838]
[1693581039505,0.1,25800.0,25797.0,0.6226]
[1693581039696,0.1,25800.0,25799.0,0.6226]
[1693581039896,0.4,25800.0,25799.0,0.6226]
[1693581040097,0.4,25800.0,25797.0,0.6226]
[1693581040296,0.11123745,25799.0,25798.0,0.6226]
[1693581041097,0.11123745,25799.0,25798.0,0.6426]
[1693581041300,0.11123745,25799.0,25798.0,0.6226]
[1693581041600,0.4,25800.0,25798.0,0.67914838]
[1693581041801,0.4,25800.0,25799.0,0.6226]
[1693581041802,0.45468907,25800.0,25799.0,0.6226]
[1693581041998,0.4,25800.0,25799.0,0.6226]
[1693581042199,0.4,25800.0,25799.0,0.6426]
[1693581042399,0.45654838,25800.0,25799.0,0.6426]
[1693581043102,0.51123745,25800.0,25799.0,0.6426]
[1693581043309,0.415,25800.0,25799.0,0.69914838]
[1693581043805,0.4,25800.0,25799.0,0.69914838]
[1693581043999,0.3,25808.0,25800.0,0.6226]
[1693581044203,0.3,25808.0,25800.0,0.02]
[1693581044402,0.00388,25804.0,25801.0,0.58076197]
[1693581044605,0.05654838,25803.0,25799.0,0.003]
[1693581044799,0.00388,25804.0,25802.0,0.6226]
[1693581044995,0.00388,25804.0,25803.0,0.6226]
[1693581045504,0.06042838,25804.0,25803.0,0.6226]
[1693581045706,0.06042838,25804.0,25803.0,0.6426]
[1693581046007,0.11511745,25804.0,25803.0,0.6426]
[1693581046308,0.11511745,25804.0,25803.0,0.6226]
[1693581046501,0.06042838,25804.0,25803.0,0.6226]
[1693581046899,0.05654838,25804.0,25803.0,0.6426]
[1693581047204,0.05654838,25804.0,25803.0,0.6226]
[1693581047797,0.05654838,25804.0,25803.0,0.6426]
[1693581048001,0.3,25805.0,25803.0,0.6426]
[1693581048209,0.3,25805.0,25804.0,0.6226]
[1693581048401,0.7782,25811.0,25804.0,0.6226]
[1693581048402,0.3,25808.0,25804.0,0.69914838]
[1693581048612,0.3,25808.0,25807.0,0.6226]
[1693581048799,0.3,25808.0,25807.0,0.6426]
[1693581049909,0.35654838,25808.0,25807.0,0.6426]
[1693581050312,0.41123745,25808.0,25807.0,0.6226]
[1693581051209,0.41223745,25808.0,25807.0,0.6256]
[1693581051512,0.41223745,25808.0,25799.0,0.6226]
[1693581051513,0.3,25802.0,25799.0,0.6226]
[1693581051811,0.00388,25800.0,25799.0,0.60322]
[1693581051999,0.3,25802.0,25799.0,0.60322]
[1693581052197,0.00388,25800.0,25799.0,0.60322]
[1693581052402,0.3,25802.0,25799.0,0.60322]
[1693581052603,0.00388,25800.0,25799.0,0.60322]
[1693581052797,0.3,25802.0,25799.0,0.60322]
[1693581053213,0.00388,25800.0,25799.0,0.62322]
[1693581053414,0.3,25802.0,25799.0,0.60322]
[1693581053807,0.00388,25800.0,25799.0,0.60322]
[1693581054012,0.3,25802.0,25799.0,0.69914838]
[1693581054206,0.3,25802.0,25801.0,0.6226]
[1693581054711,0.32,25802.0,25801.0,0.6226]
[1693581055017,0.43123745,25802.0,25801.0,0.6226]
[1693581055613,0.44823745,25802.0,25801.0,0.6256]
[1693581056011,0.337,25802.0,25801.0,0.6456]
[1693581056206,0.337,25802.0,25801.0,0.6256]
[1693581056414,0.39168907,25802.0,25801.0,0.6256]
[1693581056611,0.44823745,25802.0,25801.0,0.6256]
[1693581056817,0.39354838,25802.0,25801.0,0.6256]
[1693581057118,0.44823745,25802.0,25801.0,0.003]
[1693581057317,0.44823745,25802.0,25798.0,0.6226]
[1693581057318,0.00388,25800.0,25798.0,0.6226]
[1693581057509,0.9596,25802.0,25798.0,0.62332]
[1693581057707,0.9596,25802.0,25798.0,0.6426]
[1693581057708,0.9796,25802.0,25798.0,0.6426]
[1693581057910,0.9796,25802.0,25801.0,0.003]
[1693581058112,1.03428907,25802.0,25801.0,0.003]
[1693581058417,0.3,25796.0,25793.0,0.1582]
[1693581058615,0.3,25796.0,25789.0,0.97517]
[1693581058819,0.3,25796.0,25792.0,0.6426]
[1693581059119,0.3,25796.0,25792.0,0.58444]
[1693581059120,0.11123745,25795.0,25792.0,0.58444]
[1693581059310,0.3,25796.0,25792.0,0.58444]
[1693581059508,0.05654838,25795.0,25792.0,0.58444]
[1693581059717,0.05468907,25794.0,25792.0,0.58444]
[1693581059924,0.357,25796.0,25793.0,0.003]
[1693581060118,0.11123745,25795.0,25793.0,0.003]
[1693581060418,0.6226,25795.0,25793.0,0.003]
[1693581060619,0.11123745,25794.0,25793.0,0.003]
[1693581062114,0.11123745,25794.0,25793.0,0.6456]
[1693581062315,0.3,25796.0,25793.0,0.6426]
[1693581062520,0.037,25795.0,25793.0,0.6426]
[1693581062815,0.11123745,25794.0,25793.0,0.6426]
[1693581063317,0.14823745,25794.0,25793.0,0.023]
[1693581063519,0.14823745,25794.0,25793.0,0.003]
[1693581064222,1.05013745,25793.0,25788.0,0.0695]
[1693581064411,0.6226,25789.0,25788.0,0.07319999]
[1693581064617,0.73383745,25789.0,25788.0,0.05319999]
[1693581065217,0.73383745,25789.0,25788.0,0.05019999]
[1693581065523,0.73383745,25789.0,25788.0,0.07019999]
[1693581065713,0.73383745,25789.0,25788.0,0.05019999]
[1693581066323,0.73383745,25789.0,25788.0,0.03121999]
[1693581067223,0.73383745,25789.0,25788.0,0.01522999]
[1693581067423,0.73383745,25789.0,25781.0,0.6226]
[1693581067424,0.00388,25785.0,25781.0,0.6226]
[1693581067724,0.00388,25785.0,25781.0,0.6626]
[1693581067725,0.11123745,25784.0,25781.0,0.6626]
[1693581068024,1.03383745,25783.0,25781.0,0.02]
[1693581068223,0.3,25780.0,25775.0,0.6226]
[1693581068422,0.3,25780.0,25776.0,1.11822586]
[1693581068423,0.9226,25780.0,25776.0,1.11822586]
[1693581068620,0.9226,25780.0,25778.0,0.6226]
[1693581068621,0.05654838,25779.0,25778.0,0.6226]
[1693581068922,0.05654838,25779.0,25778.0,0.6426]
[1693581069618,0.11123745,25779.0,25775.0,0.6226]
[1693581069920,0.05654838,25778.0,25775.0,0.6426]
[1693581070116,0.05468907,25777.0,25775.0,0.6226]
[1693581070322,0.05654838,25776.0,25775.0,0.6226]
[1693581070525,0.9426,25780.0,25775.0,0.6226]
[1693581070824,0.00388,25776.0,25775.0,0.002]
[1693581071024,0.11511745,25776.0,25775.0,0.002]
[1693581071428,0.12811745,25776.0,25775.0,0.002]
[1693581071627,0.12811745,25776.0,25775.0,0.6246]
[1693581071930,0.07342838,25776.0,25775.0,0.6446]
[1693581072127,0.013,25776.0,25775.0,0.6446]
[1693581072523,0.013,25776.0,25775.0,0.70114838]
[1693581073227,0.01898001,25781.0,25777.0,0.6226]
[1693581073425,0.01898001,25781.0,25780.0,0.6226]
[1693581073626,0.01898001,25781.0,25780.0,0.6426]
[1693581074227,0.01898001,25781.0,25780.0,0.6226]
[1693581075029,0.07852839,25781.0,25780.0,0.6596]
[1693581075531,0.02198001,25781.0,25780.0,0.73614838]
[1693581077235,0.02198001,25781.0,25780.0,0.73414838]
[1693581077622,1.0907,25790.0,25780.0,1.69800837]
[1693581077830,1.1107,25790.0,25788.0,0.6226]
[1693581078029,0.05654838,25789.0,25785.0,0.6226]
[1693581078335,0.3,25790.0,25788.0,0.6226]
[1693581078531,0.05654838,25789.0,25785.0,1.20090418]
[1693581078735,0.3,25790.0,25788.0,0.6226]
[1693581078934,0.3,25790.0,25789.0,0.6226]
[1693581079539,0.41123745,25790.0,25789.0,0.6226]
[1693581080048,0.43123745,25790.0,25787.0,0.6226]
[1693581080232,0.11123745,25789.0,25787.0,0.6226]
[1693581080432,0.357,25790.0,25788.0,0.003]
[1693581080636,0.11123745,25789.0,25788.0,0.003]
[1693581080940,0.11123745,25789.0,25787.0,0.6226]
[1693581081135,0.05654838,25788.0,25787.0,0.6226]
[1693581081634,0.05654838,25788.0,25787.0,0.6596]
[1693581082235,0.13123745,25788.0,25787.0,0.6596]
[1693581082643,0.75383745,25788.0,25787.0,0.037]
[1693581084036,0.3,25785.0,25781.0,0.7764]
[1693581084241,0.05654838,25784.0,25781.0,0.1738]
[1693581084545,0.05654838,25784.0,25783.0,0.6226]
[1693581084737,0.3,25785.0,25783.0,0.6426]
[1693581084936,0.35654838,25785.0,25784.0,0.6226]
[1693581085446,0.35754838,25785.0,25784.0,0.6226]
[1693581085643,0.41223745,25785.0,25784.0,0.6226]
[1693581086051,0.36142838,25785.0,25784.0,0.6226]
[1693581086353,0.35754838,25785.0,25784.0,0.02]
[1693581086644,0.36142838,25785.0,25784.0,0.02]
[1693581086837,0.35754838,25785.0,25784.0,0.02]
[1693581087034,0.35954838,25785.0,25784.0,0.6426]
[1693581087238,0.35954838,25785.0,25784.0,0.6226]
[1693581087642,0.37354838,25785.0,25784.0,0.6436]
[1693581087846,0.07354838,25785.0,25784.0,0.6436]
[1693581088745,0.017,25785.0,25784.0,0.6436]
[1693581089243,0.017,25785.0,25784.0,0.70014838]
[1693581090444,0.30388,25791.0,25784.0,0.69914838]
[1693581090642,0.30388,25791.0,25789.0,0.6226]
[1693581090840,0.9226,25793.0,25789.0,0.6426]
[1693581091036,0.3,25795.0,25792.0,0.6226]
[1693581091341,0.3,25793.0,25792.0,0.6226]
[1693581091745,0.41123745,25793.0,25792.0,0.6226]
[1693581093433,0.6226,25796.0,25792.0,0.6596]
[1693581093434,0.003,25795.0,25792.0,0.6596]
[1693581094052,0.003,25793.0,25792.0,0.6226]
[1693581094548,0.003,25793.0,25792.0,0.67914838]
[1693581094847,0.05954838,25793.0,25792.0,0.67914838]
[1693581095050,0.003,25793.0,25792.0,0.67914838]
[1693581095251,0.002,25793.0,25792.0,0.70214838]
[1693581095548,0.002,25793.0,25792.0,0.72214838]
[1693581096846,0.05854838,25793.0,25792.0,0.023]
[1693581097043,1.62374838,25793.0,25792.0,0.023]
[1693581097446,0.00388,25791.0,25790.0,0.00058155]
[1693581097747,0.6426,25791.0,25790.0,0.00058155]
[1693581098047,0.75383745,25791.0,25790.0,0.00058155]
[1693581099051,0.75771745,25791.0,25790.0,0.00058155]
[1693581099747,0.75383745,25791.0,25790.0,0.00058155]
[1693581100539,0.3,25785.0,25779.0,0.69960565]
[1693581100753,0.9426,25785.0,25780.0,1.1180111]
[1693581101753,0.6226,25781.0,25779.0,0.037]
[1693581102047,0.05654838,25780.0,25779.0,0.037]
[1693581102251,0.3,25782.0,25779.0,0.67914838]
[1693581102455,0.35468907,25782.0,25780.0,0.036]
[1693581102852,0.3,25784.0,25781.0,0.6226]
[1693581103057,0.3,25784.0,25783.0,0.6226]
[1693581103355,0.35654838,25784.0,25783.0,0.6226]
[1693581103557,0.3,25784.0,25783.0,0.6226]
[1693581103746,0.004,25785.0,25783.0,0.6226]
[1693581103947,0.004,25785.0,25783.0,0.6426]
[1693581105041,0.004,25785.0,25784.0,0.05654838]
[1693581105446,0.004,25785.0,25783.0,0.6226]
[1693581105743,0.024,25785.0,25783.0,0.6226]
[1693581105944,0.05654838,25784.0,25783.0,0.6226]
[1693581106148,0.6226,25787.0,25783.0,0.6226]
[1693581106461,0.00388,25785.0,25783.0,0.6226]
[1693581106754,0.009,25785.0,25784.0,0.001]
[1693581106954,0.01288,25785.0,25784.0,0.001]
[1693581107259,0.11511745,25785.0,25783.0,0.001]
[1693581107456,0.00388,25785.0,25783.0,0.001]
[1693581107655,0.05654838,25784.0,25783.0,0.001]
[1693581108448,0.05654838,25784.0,25783.0,0.6236]
[1693581108649,0.009,25787.0,25783.0,0.68014838]
[1693581108856,0.009,25787.0,25786.0,0.6226]
[1693581109249,0.009,25787.0,25786.0,0.67914838]
[1693581110255,0.9226,25791.0,25786.0,0.67914838]
[1693581110449,0.9426,25791.0,25786.0,0.6226]
[1693581110644,0.9226,25791.0,25786.0,0.6426]
[1693581110849,0.036,25787.0,25786.0,0.6466]
[1693581111051,0.036,25787.0,25786.0,0.70314838]
[1693581111254,0.056,25787.0,25786.0,0.004]
[1693581111451,0.6786,25787.0,25786.0,0.004]
[1693581111649,0.69914838,25787.0,25786.0,0.032]
[1693581111952,0.75383745,25787.0,25786.0,0.032]
[1693581112343,0.13123745,25787.0,25786.0,0.032]
[1693581112746,0.02,25787.0,25786.0,0.6546]
[1693581112947,0.92948,25791.0,25786.0,0.6546]
[1693581113156,0.3,25788.0,25786.0,0.6546]
[1693581113456,0.05654838,25787.0,25786.0,0.6546]
[1693581113953,0.003,25787.0,25786.0,0.6546]
[1693581114154,0.7907,25793.0,25786.0,0.6746]
[1693581114155,0.19021407,25793.0,25786.0,0.6746]
[1693581114366,0.19021407,25797.0,25792.0,0.6226]
[1693581114657,0.19021407,25797.0,25794.0,0.6226]
[1693581114850,0.24676245,25796.0,25794.0,0.6226]
[1693581115058,0.19021407,25796.0,25794.0,0.6226]
[1693581115248,0.05654838,25795.0,25794.0,0.6226]
[1693581115756,0.19021407,25796.0,25794.0,0.6226]
[1693581115957,0.05654838,25795.0,25794.0,0.6226]
[1693581116853,0.05654838,25795.0,25791.0,0.6226]
[1693581117060,0.05654838,25795.0,25788.0,1.13039]
[1693581117061,0.11123745,25794.0,25792.0,0.6226]
[1693581117268,0.02,25794.0,25792.0,0.6256]
[1693581117450,0.05654838,25793.0,25792.0,0.6256]
[1693581117659,0.11123745,25793.0,25792.0,0.6256]
[1693581117961,0.11123745,25793.0,25792.0,0.6226]
[1693581118457,0.11123745,25793.0,25792.0,0.6416]
[1693581119652,0.94405152,25793.0,25792.0,0.019]
[1693581119851,0.75383745,25793.0,25792.0,0.019]
[1693581120059,1.35383745,25793.0,25792.0,0.019]
[1693581120453,1.37321745,25793.0,25792.0,0.019]
[1693581120965,0.3,25789.0,25786.0,0.6226]
[1693581121155,0.11123745,25788.0,25786.0,0.6226]
[1693581121351,0.05468907,25788.0,25786.0,0.6226]
[1693581121555,0.05468907,25787.0,25786.0,0.6226]
[1693581121756,0.05654838,25787.0,25786.0,0.6226]
[1693581122159,0.11123745,25787.0,25786.0,0.6226]
[1693581122456,0.11123745,25787.0,25786.0,0.60361]
[1693581122853,0.75583745,25787.0,25786.0,0.019]
[1693581124059,0.68114838,25787.0,25786.0,0.019]
[1693581124562,0.05854838,25787.0,25786.0,0.6416]
[1693581124763,0.05854838,25787.0,25786.0,0.6616]
[1693581125563,0.002,25787.0,25786.0,0.6616]
[1693581125960,0.002,25787.0,25786.0,0.71814838]
[1693581126266,0.002,25787.0,25786.0,1.83594674]
[1693581127362,0.002,25787.0,25785.0,0.6226]
[1693581127566,0.002,25787.0,25785.0,0.60362]
[1693581127769,0.05654838,25786.0,25785.0,0.60362]
[1693581128463,0.002,25787.0,25785.0,0.60362]
[1693581128663,0.002,25787.0,25786.0,0.6226]
[1693581128966,0.002,25787.0,25786.0,0.6426]
[1693581129167,0.002,25787.0,25786.0,0.69914838]
[1693581130661,0.002,25787.0,25786.0,0.6226]
[1693581131367,0.05854838,25787.0,25786.0,0.6226]
[1693581132071,0.05954838,25787.0,25786.0,0.6226]
[1693581132968,0.05854838,25787.0,25786.0,0.6376]
[1693581135358,0.11323745,25787.0,25786.0,0.6376]
[1693581135579,0.05854838,25787.0,25786.0,0.6376]
[1693581136467,0.002,25787.0,25786.0,0.71414838]
[1693581137666,0.002,25787.0,25786.0,1.83190321]
[1693581137864,0.19132542,25793.0,25786.0,1.77535483]
[1693581138174,0.19132542,25793.0,25792.0,0.6226]
[1693581138563,0.19132542,25793.0,25792.0,0.67914838]
[1693581139670,0.2478738,25794.0,25792.0,0.67914838]
[1693581139871,0.19132542,25794.0,25793.0,0.67914838]
[1693581140074,0.19132542,25794.0,25793.0,0.6226]
[1693581140270,0.19132542,25796.0,25793.0,0.6426]
[1693581140460,0.19132542,25796.0,25795.0,0.6226]
[1693581140659,0.19132542,25797.0,25795.0,0.6426]
[1693581140872,0.19132542,25797.0,25796.0,0.67914838]
[1693581141068,0.19132542,25797.0,25796.0,0.6226]
[1693581141264,0.26601449,25797.0,25794.0,0.6226]
[1693581141565,0.8704738,25796.0,25792.0,0.6256]
[1693581141769,0.05468907,25795.0,25792.0,0.6256]
[1693581141963,0.21132542,25795.0,25792.0,0.6256]
[1693581142171,0.11123745,25794.0,25792.0,0.6256]
[1693581142368,0.21132542,25795.0,25792.0,0.6256]
[1693581142568,0.19132542,25795.0,25792.0,0.6226]
[1693581142770,0.11323745,25794.0,25793.0,0.015]
[1693581142970,0.05854838,25794.0,25793.0,0.015]
[1693581143167,0.05654838,25794.0,25793.0,0.6226]
[1693581143367,0.05754838,25794.0,25793.0,0.6226]
[1693581143578,0.05754838,25794.0,25792.0,0.002]
[1693581143774,0.05654838,25793.0,25792.0,0.002]
[1693581143982,0.11123745,25793.0,25792.0,0.002]
[1693581144670,0.41123745,25793.0,25792.0,0.002]
[1693581145169,0.41123745,25793.0,25791.0,0.6226]
[1693581145367,0.11511745,25792.0,25791.0,0.6226]
[1693581145565,0.05654838,25792.0,25791.0,0.6226]
[1693581146877,0.35654838,25793.0,25791.0,0.6226]
[1693581147079,0.3,25793.0,25792.0,0.6226]
[1693581147275,0.302,25793.0,25792.0,0.6376]
[1693581147479,0.002,25793.0,25792.0,0.6376]
[1693581147671,0.19132542,25796.0,25792.0,0.67914838]
[1693581147873,0.05654838,25795.0,25792.0,0.6226]
[1693581148274,0.025,25793.0,25792.0,0.6256]
[1693581148779,0.08154838,25793.0,25792.0,0.6256]
[1693581149481,0.025,25793.0,25792.0,0.6256]
[1693581149880,0.025,25793.0,25792.0,0.70214838]
[1693581150083,0.001,25795.0,25792.0,0.70114838]
[1693581150274,0.001,25795.0,25794.0,0.6226]
[1693581150473,0.001,25795.0,25794.0,0.6426]
[1693581150674,0.19132542,25798.0,25794.0,0.6426]
[1693581150871,0.19132542,25798.0,25795.0,0.05654838]
[1693581151076,1.7133,25800.0,25795.0,0.05654838]
[1693581151077,0.19132542,25799.0,25795.0,0.05654838]
[1693581151274,0.004,25795.0,25794.0,0.6226]
[1693581151581,0.004,25795.0,25794.0,0.67914838]
[1693581151775,0.004,25795.0,25794.0,0.6426]
[1693581151978,0.19132542,25799.0,25795.0,0.015]
[1693581151979,0.002,25798.0,25795.0,0.015]
[1693581152276,0.21332542,25798.0,25795.0,0.015]
[1693581152483,0.11123745,25797.0,25795.0,0.015]
[1693581152682,0.21332542,25798.0,25795.0,0.015]
[1693581152880,0.05654838,25797.0,25795.0,0.015]
[1693581153076,0.02,25797.0,25795.0,0.015]
[1693581153477,0.07654838,25797.0,25795.0,0.07154838]
[1693581153683,0.05654838,25797.0,25795.0,0.07154838]
[1693581154076,0.19132542,25799.0,25796.0,0.05654838]
[1693581154281,0.21132542,25799.0,25798.0,0.6226]
[1693581154474,0.19132542,25799.0,25798.0,0.6226]
[1693581154672,0.21132542,25799.0,25798.0,0.6226]
[1693581154869,0.2678738,25799.0,25798.0,0.6226]
[1693581155877,0.19232542,25799.0,25798.0,0.6226]
[1693581156081,0.001,25799.0,25798.0,0.6226]
[1693581156277,0.001,25799.0,25798.0,0.67914838]
[1693581156579,0.001,25799.0,25798.0,0.6809602]
[1693581157684,0.001,25799.0,25798.0,0.62441182]
[1693581158083,0.08154838,25799.0,25798.0,0.00481182]
[1693581158290,0.13623745,25799.0,25798.0,0.00481182]
[1693581158482,0.15623745,25799.0,25798.0,0.00481182]
[1693581158879,0.45623745,25799.0,25798.0,0.00481182]
[1693581159174,0.45623745,25799.0,25798.0,0.00181182]
[1693581159378,0.43523745,25799.0,25798.0,0.02981182]
[1693581159880,0.41523745,25799.0,25798.0,0.65241182]
[1693581160088,0.304,25799.0,25798.0,0.65241182]
[1693581160687,0.304,25799.0,25798.0,0.7089602]
[1693581161192,0.004,25799.0,25798.0,0.7089602]
[1693581161685,0.004,25799.0,25798.0,0.7289602]
[1693581162081,0.002,25799.0,25798.0,0.7159602]
[1693581162785,0.003,25799.0,25798.0,0.7289602]
[1693581163182,0.003,25799.0,25798.0,0.7089602]
[1693581163385,0.49132542,25806.0,25798.0,0.62441182]
[1693581163386,0.6226,25803.0,25798.0,0.62441182]
[1693581163590,0.004,25799.0,25798.0,0.6506]
[1693581163789,0.05873656,25799.0,25798.0,0.6506]
[1693581164386,0.11342563,25799.0,25798.0,0.6506]
[1693581164587,0.00218818,25799.0,25798.0,0.6506]
[1693581165092,0.3,25803.0,25798.0,0.67914838]
[1693581165296,0.304,25803.0,25802.0,0.6226]
[1693581165689,0.35868907,25803.0,25802.0,0.67914838]
[1693581165889,1.11392542,25806.0,25802.0,0.69914838]
[1693581166092,1.11392542,25806.0,25802.0,0.6226]
[1693581166392,0.9226,25806.0,25803.0,0.05654838]
[1693581166592,0.9226,25806.0,25802.0,0.6226]
[1693581166797,0.9226,25806.0,25803.0,0.05654838]
[1693581166987,0.3,25806.0,25803.0,0.67914838]
[1693581167191,0.05654838,25805.0,25803.0,0.67914838]
[1693581167787,0.3,25806.0,25804.0,0.05654838]
[1693581167983,0.41123745,25806.0,25804.0,0.05654838]
[1693581168188,0.41123745,25806.0,25804.0,0.67914838]
[1693581168691,0.41123745,25806.0,25804.0,0.6226]
[1693581168692,0.3,25806.0,25804.0,0.6226]
[1693581168887,0.35654838,25806.0,25804.0,0.6226]
[1693581169085,0.012,25806.0,25805.0,0.6226]
[1693581169291,0.012,25806.0,25805.0,0.6426]
[1693581169795,0.012,25806.0,25805.0,0.69914838]
[1693581170395,0.00388,25808.0,25805.0,0.69914838]
[1693581170594,0.00388,25808.0,25806.0,0.6226]
[1693581170990,0.02388,25808.0,25806.0,0.6226]
[1693581171198,0.11123745,25807.0,25806.0,0.6226]
[1693581171908,0.13123745,25807.0,25806.0,0.6226]
[1693581172317,0.13123745,25807.0,25805.0,0.03]
[1693581172502,0.11123745,25806.0,25805.0,0.03]
[1693581172811,0.11523745,25806.0,25805.0,0.03]
[1693581173010,0.06054838,25806.0,25805.0,0.03]
[1693581173611,0.11523745,25806.0,25805.0,0.03]
[1693581173909,0.11123745,25806.0,25804.0,0.6226]
[1693581174306,0.11423745,25806.0,25805.0,0.029]
[1693581176114,1.05683745,25806.0,25805.0,0.029]
[1693581176815,1.05783745,25806.0,25804.0,0.03]
[1693581177013,0.11511745,25805.0,25804.0,0.03]
[1693581177399,0.06042838,25805.0,25804.0,0.70914838]
[1693581177604,0.003,25806.0,25805.0,0.027]
[1693581177806,0.003,25806.0,25805.0,0.6496]
[1693581178005,0.003,25806.0,25805.0,0.70614838]
[1693581178206,0.00388,25808.0,25805.0,0.67914838]
[1693581178404,0.00388,25808.0,25807.0,0.6226]
[1693581179015,0.00388,25808.0,25807.0,0.67914838]
[1693581179919,0.00388,25808.0,25807.0,0.6226]
[1693581181003,0.3,25812.0,25807.0,0.67914838]
[1693581181207,0.32,25812.0,25810.0,0.6226]
[1693581181611,0.05856907,25811.0,25810.0,0.6226]
[1693581181807,0.11511745,25811.0,25810.0,0.6226]
[1693581182119,0.00388,25810.0,25807.0,0.7845]
[1693581182316,0.00388,25808.0,25807.0,0.7845]
[1693581182509,0.9226,25812.0,25807.0,0.7845]
[1693581182710,0.9426,25812.0,25807.0,0.7845]
[1693581183918,0.9536,25812.0,25810.0,0.002]
[1693581184120,0.11511745,25811.0,25810.0,0.002]
[1693581184323,1.95771745,25811.0,25810.0,0.002]
[1693581184514,0.3,25808.0,25807.0,0.027]
[1693581184714,1.05383745,25808.0,25807.0,0.027]
[1693581184920,1.05383745,25808.0,25804.0,0.6226]
[1693581185112,0.11123745,25807.0,25804.0,0.6226]